[Event "Swedish Championship U20 2022"]
[Site "Uppsala"]
[Date "2022.07.06"]
[Round "5.5"]
[White "Torngren, Gustav"]
[Black "Falkevall, Axel"]
[Result "1/2-1/2"]
[ECO "D38"]
[WhiteElo "2273"]
[BlackElo "2275"]
[Annotator "TA"]
[PlyCount "264"]
[EventDate "2022.07.01"]
[EventType "tourn"]
[EventCountry "SWE"]
[SourceTitle "playchess.com"]
[Source "ChessBase"]
[SourceQuality "1"]
[TimeControl "40/5400+30:1800+30"]

{[%evp 97,264,45,70,43,43,42,30,16,16,7,7,7,7,7,7,7,7,8,12,12,12,12,12,12,12,12,12,12,12,12,12,12,12,12,12,5,7,7,12,12,12,12,12,12,12,12,12,12,12,12,12,12,12,0,0,0,0,0,0,0,12,12,12,12,12,12,12,12,12,12,12,0,12,7,7,0,0,0,7,7,8,8,8,8,8,8,23,7,8,7,7,7,8,7,8,7,8,8,8,8,23,7,7,0,0,0,0,0,0,0,0,0,0,0,0,0,0,0,0,0,0,0,0,0,8,8,8,8,8,8,8,8,8,8,8,8,8,8,8,8,8,8,8,8,8,8,8,8,8,8,8,0,8,8,8,8,8,0,8,8,8,8,8,0,8,8,8,8,8]} 1. d4 {[%emt 0:05:59]} Nf6 {[%emt 0:00:26]} 2. Nf3 {[%emt 0:01:35]} d5 {[%emt 0:01:06]} 3. c4 {[%emt 0:00:15]} e6 {[%emt 0:00:15]} 4. Nc3 {[%emt 0:00:33]} Bb4 {[%emt 0:00:44]} 5. Bg5 {[%emt 0:00:49]} h6 {[%emt 0:00:48]} 6. Bxf6 {[%emt 0:01:12]} Qxf6 {[%emt 0:00:20]} 7. Qa4+ {[%emt 0:00:08]} Nc6 {[%emt 0:00:14]} 8. e3 {[%emt 0:00:05]} O-O {[%emt 0:01:06]} 9. Rc1 {[%emt 0:00:06]} Rd8 {[%emt 0:01:21]} 10. Be2 {[%emt 0:00:16]} dxc4 {[%emt 0:01:48]} 11. Qb5 {[%emt 0:00:20]} Bxc3+ {[%emt 0:12:05]} 12. Rxc3 {[%emt 0:00:25]} Ne7 {[%emt 0:14:47]} 13. Rxc4 {[%emt 0:09:14]} Nd5 {[%emt 0:10:15]} 14. O-O {[%emt 0:01:48]} a6 {[%emt 0:04:44]} 15. Qb3 {[%emt 0:00:31]} b6 {[%emt 0:04:50]} 16. Rfc1 {[%emt 0:24:10]} a5 {[%emt 0:05:45]} 17. e4 {[%emt 0:02:36]} Nf4 {[%emt 0:05:32]} 18. Bf1 {[%emt 0:01:33]} c5 {[%emt 0:10:44]} 19. g3 {[%emt 0:02:26]} Ba6 {[%emt 0:04:15]} 20. R4c2 {[%emt 0:08:40]} Bxf1 {[%emt 0:04:57]} 21. Kxf1 {[%emt 0:00:13]} cxd4 {[%emt 0:05:13]} 22. gxf4 {[%emt 0:03:51]} d3 {[%emt 0:00:32]} 23. Rc3 {[%emt 0:00:26]} Qxf4 {[%emt 0:00:37]} 24. Ng1 {[%emt 0:00:14]} Qxe4 {[%emt 0:03:14]} 25. Rd1 {[%emt 0:03:45]} a4 {[%emt 0:03:01]} 26. Qc4 {[%emt 0:02:31]} Rd4 {[%emt 0:02:02]} 27. Qc6 {[%emt 0:00:00]} Qxc6 {[%emt 0:00:24]} 28. Rxc6 {[%emt 0:00:00]} Rb4 {[%emt 0:00:14]} 29. Rd2 {[%emt 0:07:46]} e5 {[%emt 0:01:07]} 30. a3 {[%emt 0:01:15]} Rb3 {[%emt 0:00:39]} 31. Nf3 {[%emt 0:01:25]} Ra5 {[%emt 0:00:31]} 32. Rc8+ {[%emt 0:05:01]} Kh7 {[%emt 0:00:04]} 33. Re8 {[%emt 0:00:06]} f6 {[%emt 0:00:28]} 34. Ne1 {[%emt 0:00:09]} Rd5 {[%emt 0:00:29]} 35. f3 {[%emt 0:00:10]} f5 {[%emt 0:01:51]} 36. Kf2 {[%emt 0:00:19]} f4 {[%emt 0:01:20]} 37. Rc8 {[%emt 0:05:51]} Kg6 {[%emt 0:00:24]} 38. Rc3 {[%emt 0:03:18]} Rxc3 {[%emt 0:00:21]} 39. bxc3 {[%emt 0:00:02]} Kf5 {[%emt 0:00:11]} 40. Rxd3 {[%emt 0:03:31]} Rb5 {[%emt 0:00:21]} 41. Ke2 {[%emt 0:02:04]} Rb2+ {[%emt 0:01:40]} 42. Rd2 {[%emt 0:00:00]} Rb3 {[%emt 0:00:32]} 43. Kd3 {[%emt 0:14:15]} g5 {[%emt 0:07:08]} 44. Nc2 {[%emt 0:04:39]} h5 {[%emt 0:01:32]} 45. h3 {[%emt 0:01:00]} Rb1 {[%emt 0:02:48]} 46. Kc4 {[%emt 0:04:32]} Rh1 {[%emt 0:03:50]} 47. Rd5 {[%emt 0:06:59]} Rxh3 {[%emt 0:03:09]} 48. Nd4+ {[%emt 0:00:06]} Kg6 {[%emt 0:06:08] [#]} 49. Rxe5 {[%emt 0:02:59]} (49. Rd6+ $1 $16 Kf7 50. Ne6) 49... g4 $14 {[%emt 0:00:58]} 50. fxg4 {[%emt 0:00:56]} (50. Re4 $5 {[%cal Rf3g4]}) 50... hxg4 {[%emt 0:00:25]} 51. Re4 {[%emt 0:00:23]} Kg5 {[%emt 0:01:06]} 52. Ne6+ {[%emt 0:01:31]} Kf5 {[%emt 0:00:46]} 53. Rxf4+ {[%emt 0:00:11]} (53. Kd5 {is more complex.} Rd3+ 54. Rd4 Rf3 55. Rxa4 Rf1 56. Ra8) 53... Kxe6 {[%emt 0:00:09]} 54. Rxg4 {[%emt 0:00:06]} Kd6 {[%emt 0:01:56]} 55. Kb4 {[%emt 0:00:26]} Kc6 {[%emt 0:00:40]} 56. Rc4+ {[%emt 0:00:27]} Kb7 {[%emt 0:00:20]} 57. Kxa4 {[%emt 0:00:08]} Ka6 {[%emt 0:00:48]} 58. Kb4 {[%emt 0:00:34]} Rh1 {[%emt 0:00:41]} (58... Rh2 $5 {[%cal Rh2b2]} 59. Kb3 b5 $11) 59. Kb3 {[%emt 0:00:32]} Rb1+ {[%emt 0:01:02]} 60. Kc2 {[%emt 0:00:14]} Rh1 {[%emt 0:00:32]} 61. Ra4+ {[%emt 0:00:38]} Kb7 {[%emt 0:00:33]} 62. Rg4 {[%emt 0:00:15]} Ka6 {[%emt 0:00:35]} 63. Rg5 {[%emt 0:01:05]} Rh4 {[%emt 0:00:28]} 64. Kb3 {[%emt 0:00:15]} Rh1 {[%emt 0:00:22]} 65. Rg2 {[%emt 0:00:13]} Rh6 {[%emt 0:00:26]} 66. Kb4 {[%emt 0:00:32]} Rh1 {[%emt 0:00:27]} 67. Rb2 {[%emt 0:00:20]} Rh4+ {[%emt 0:00:13]} 68. Kb3 {[%emt 0:00:03]} Kb7 {[%emt 0:00:15]} 69. Rb1 {[%emt 0:00:07]} Ka6 {[%emt 0:00:09]} 70. Rg1 {[%emt 0:00:13]} Kb7 {[%emt 0:00:18]} 71. Ra1 {[%emt 0:00:47]} Ka6 {[%emt 0:00:12]} 72. Rd1 {[%emt 0:00:06]} Kb7 {[%emt 0:00:20]} 73. Rd4 {[%emt 0:00:18]} Rh1 {[%emt 0:00:22]} 74. Rb4 {[%emt 0:00:42]} Ka6 {[%emt 0:00:28]} 75. Kc4 {[%emt 0:00:24]} Rh4+ {[%emt 0:00:36]} 76. Kd3 {[%emt 0:00:07]} Rh3+ {[%emt 0:00:15]} 77. Kc2 {[%emt 0:00:02]} Rh2+ {[%emt 0:00:12]} 78. Kb3 {[%emt 0:00:01]} Rh1 {[%emt 0:00:26]} 79. Rf4 {[%emt 0:00:09]} Rb1+ {[%emt 0:00:33]} 80. Kc2 {[%emt 0:00:07]} Rh1 {[%emt 0:00:32]} 81. Rf2 {[%emt 0:00:25]} Rg1 {[%emt 0:00:15]} 82. Rh2 {[%emt 0:00:06]} Rf1 {[%emt 0:00:31]} 83. Kb3 {[%emt 0:00:26]} Rb1+ {[%emt 0:00:16]} 84. Rb2 {[%emt 0:00:03]} Rh1 {[%emt 0:00:10]} 85. a4 {[%emt 0:00:08]} Rh4 {[%emt 0:00:35]} 86. Ka3 {[%emt 0:00:38]} Rc4 {[%emt 0:00:29]} 87. Kb3 {[%emt 0:00:09]} Rh4 {[%emt 0:00:08]} 88. Rg2 {[%emt 0:00:00]} Rh1 {[%emt 0:00:20]} 89. Rg5 {[%emt 0:00:36]} Rb1+ {[%emt 0:01:36]} 90. Ka2 {[%emt 0:00:25]} Rh1 {[%emt 0:00:54]} 91. Rb5 {[%emt 0:00:21]} Rh4 {[%emt 0:00:31]} 92. Rb4 {[%emt 0:00:35]} Rh3 {[%emt 0:00:28]} 93. Rc4 {[%emt 0:00:17]} Rh1 {[%emt 0:00:26]} 94. Rc8 {[%emt 0:00:09]} Kb7 {[%emt 0:00:31]} 95. Rd8 {[%emt 0:00:10]} Rh5 {[%emt 0:00:25]} 96. Rd1 {[%emt 0:00:18]} Ka6 {[%emt 0:00:24]} 97. Kb3 {[%emt 0:00:05]} Kb7 {[%emt 0:00:17]} 98. Kb4 {[%emt 0:00:09]} Rh2 {[%emt 0:00:51]} 99. Rb1 {[%emt 0:01:24]} Ka6 {[%emt 0:00:16]} 100. c4 {[%emt 0:00:02]} Rh5 {[%emt 0:00:24]} 101. Ra1 {[%emt 0:00:09]} Rg5 {[%emt 0:00:18]} 102. Rd1 {[%emt 0:00:28]} Rg2 {[%emt 0:00:51]} 103. Rd3 {[%emt 0:01:48]} Rb2+ {[%emt 0:00:41]} 104. Rb3 {[%emt 0:00:02]} Ra2 {[%emt 0:00:34]} 105. Rb1 {[%emt 0:00:05]} Rc2 {[%emt 0:00:21]} 106. a5 {[%emt 0:00:51]} bxa5+ {[%emt 0:00:34]} 107. Kc5 {[%emt 0:00:06]} Rh2 {[%emt 0:00:42]} 108. Rb6+ {[%emt 0:00:31]} Ka7 {[%emt 0:00:12]} 109. Rg6 {[%emt 0:00:10]} Kb7 {[%emt 0:00:53]} 110. Rg7+ {[%emt 0:02:46]} Kc8 {[%emt 0:00:16]} 111. Kb5 $1 {[%emt 0:01:15]} Rh5+ {[%emt 0:01:12]} 112. Kb6 {[%emt 0:00:22]} (112. c5 $5 {[%cal Rb5b6]} Rh6 113. Ra7 $11) 112... Rh6+ {[%emt 0:00:23]} 113. Kxa5 {[%emt 0:00:09]} Rh5+ {[%emt 0:00:33]} 114. Kb4 {[%emt 0:00:11]} Rf5 {[%emt 0:00:21]} 115. Rh7 {[%emt 0:00:02]} Rg5 {[%emt 0:00:08]} 116. Ra7 {[%emt 0:00:24]} Rh5 {[%emt 0:00:08]} 117. Rf7 {[%emt 0:01:04]} Rg5 {[%emt 0:00:07]} 118. Rh7 {[%emt 0:00:03]} Rf5 {[%emt 0:00:13]} 119. Kc3 {[%emt 0:00:09]} Rg5 {[%emt 0:00:17]} 120. Re7 {[%emt 0:00:14]} Rh5 {[%emt 0:00:58]} 121. Kd4 {[%emt 0:00:13]} Rh4+ {[%emt 0:00:38]} 122. Kd5 {[%emt 0:00:04]} Rh5+ {[%emt 0:00:32]} 123. Kd6 {[%emt 0:00:08]} (123. Kc6 $5 {[%cal Re7e8]} Rh6+ 124. Kd5 $11) 123... Rh6+ {[%emt 0:00:37]} 124. Kd5 {[%emt 0:00:02]} Rh5+ {[%emt 0:00:08]} 125. Kc6 {[%emt 0:00:09]} Rh6+ {[%emt 0:00:06]} 126. Kc5 {[%emt 0:00:05]} Rh5+ {[%emt 0:00:09]} 127. Kc6 {[%emt 0:00:06]} Rh6+ {[%emt 0:00:06]} 128. Kb5 {[%emt 0:00:03]} Rh5+ {[%emt 0:00:07]} 129. Kb6 {[%emt 0:00:15]} Rh6+ {[%emt 0:00:09]} 130. Kb5 {[%emt 0:00:04]} Rh5+ {[%emt 0:00:12]} 131. c5 {[%emt 0:00:05]} Rh6 {[%emt 0:00:10]} 132. Rg7 {[%emt 0:00:04]} Rf6 {[%emt 0:00:08]} 1/2-1/2

[Event "Swedish Championship U20 2022"]
[Site "Uppsala"]
[Date "2022.07.07"]
[Round "6.1"]
[White "Soderstrom, Adrian"]
[Black "Seo, Jung Hyun"]
[Result "1/2-1/2"]
[ECO "E04"]
[WhiteElo "2292"]
[BlackElo "2102"]
[Annotator "RC"]
[PlyCount "33"]
[EventDate "2022.07.01"]
[EventType "tourn"]
[EventCountry "SWE"]
[SourceTitle "playchess.com"]
[Source "ChessBase"]
[SourceQuality "1"]
[TimeControl "40/5400+30:1800+30"]

1. d4 {[%emt 0:00:09]} d5 {[%emt 0:00:48]} 2. c4 {[%emt 0:00:14]} e6 {[%emt 0:00:05]} 3. Nc3 {[%emt 0:00:15]} Nf6 {[%emt 0:00:02]} 4. Nf3 {[%emt 0:00:24]} c6 {[%emt 0:03:53]} 5. g3 {[%emt 0:00:31]} dxc4 {[%emt 0:00:05]} 6. Bg2 {[%emt 0:00:13]} b5 {[%emt 0:01:29]} 7. Ne5 {[%emt 0:00:36]} Qb6 {[%emt 0:03:56]} 8. O-O {[%emt 0:03:16]} Bb7 {[%emt 0:01:31]} 9. b3 {[%emt 0:00:42]} cxb3 {[%emt 0:08:29]} 10. axb3 {[%emt 0:00:20]} Nbd7 {[%emt 0:02:29]} 11. Be3 {[%emt 0:09:49]} Rd8 {[%emt 0:09:29]} 12. Nd3 {[%emt 0:48:43]} c5 {[%emt 0:18:10]} 13. dxc5 {[%emt 0:06:51]} Bxc5 {[%emt 0:03:17]} 14. Nxc5 {[%emt 0:04:45]} Nxc5 {[%emt 0:01:08]} 15. Qc2 {[%emt 0:01:12]} Bxg2 {[%emt 0:01:13]} 16. Kxg2 {[%emt 0:00:13]} O-O {[%emt 0:03:10]} 17. b4 {[%emt 0:05:35]} 1/2-1/2

[Event "Swedish Championship U20 2022"]
[Site "Uppsala"]
[Date "2022.07.07"]
[Round "6.2"]
[White "Grahn, Vidar"]
[Black "Nord, Alexander"]
[Result "0-1"]
[ECO "B22"]
[WhiteElo "2003"]
[BlackElo "2200"]
[Annotator "RC"]
[PlyCount "78"]
[EventDate "2022.07.01"]
[EventType "tourn"]
[EventCountry "SWE"]
[SourceTitle "playchess.com"]
[Source "ChessBase"]
[SourceQuality "1"]
[TimeControl "40/5400+30:1800+30"]

1. e4 {[%emt 0:00:03]} c5 {[%emt 0:00:07]} 2. c3 {[%emt 0:00:03]} Nf6 {[%emt 0:00:14]} 3. e5 {[%emt 0:00:03]} Nd5 {[%emt 0:00:06]} 4. d4 {[%emt 0:00:06]} cxd4 {[%emt 0:00:21]} 5. Nf3 {[%emt 0:00:04]} d6 {[%emt 0:00:28]} 6. cxd4 {[%emt 0:00:06]} Nc6 {[%emt 0:00:08]} 7. Bc4 {[%emt 0:00:13]} e6 {[%emt 0:00:30]} 8. O-O {[%emt 0:01:17]} Be7 {[%emt 0:01:52]} 9. Nbd2 {[%emt 0:12:22]} O-O {[%emt 0:02:59]} 10. a3 {[%emt 0:07:58]} dxe5 {[%emt 0:15:39]} 11. dxe5 {[%emt 0:01:03]} Nf4 {[%emt 0:07:37]} 12. g3 {[%emt 0:04:53]} Nd3 {[%emt 0:06:53]} 13. Qe2 {[%emt 0:02:40]} Nxc1 {[%emt 0:00:18]} 14. Raxc1 {[%emt 0:00:08]} Qc7 {[%emt 0:09:07]} 15. Bd3 {[%emt 0:13:47]} Rd8 {[%emt 0:01:56]} 16. Ne4 {[%emt 0:01:08]} Bd7 {[%emt 0:09:09]} 17. h4 {[%emt 0:09:58]} Be8 {[%emt 0:02:39]} 18. Neg5 {[%emt 0:03:51]} g6 {[%emt 0:01:02]} 19. Kg2 {[%emt 0:05:11]} Qa5 {[%emt 0:05:14]} 20. Rh1 {[%emt 0:04:11]} Rxd3 {[%emt 0:02:09]} 21. Qxd3 {[%emt 0:00:24]} Nxe5 {[%emt 0:00:11]} 22. Nxe5 {[%emt 0:02:23]} Qxe5 {[%emt 0:00:07]} 23. Rhe1 {[%emt 0:03:27]} Qxb2 {[%emt 0:02:59]} 24. Rc3 {[%emt 0:04:47]} Bc6+ {[%emt 0:01:21]} 25. Kg1 {[%emt 0:03:17]} Rd8 {[%emt 0:03:15]} 26. Qe3 {[%emt 0:01:48]} Bf6 {[%emt 0:01:53]} 27. Rc4 {[%emt 0:04:47]} Kg7 {[%emt 0:08:23]} 28. h5 {[%emt 0:10:28]} gxh5 {[%emt 0:06:15]} 29. Ne4 {[%emt 0:00:17]} Rd5 {[%emt 0:03:25]} 30. Nxf6 {[%emt 0:01:20]} Qxf6 {[%emt 0:00:03]} 31. Qxa7 {[%emt 0:01:09]} Qf5 {[%emt 0:02:38]} 32. Qe3 {[%emt 0:00:22]} Rd3 {[%emt 0:00:26]} 33. Qe2 {[%emt 0:02:08]} Qd5 {[%emt 0:00:54]} 34. f3 {[%emt 0:01:12]} Qxc4 {[%emt 0:01:08]} 35. Qe5+ {[%emt 0:00:08]} f6 {[%emt 0:00:15]} 36. Qxh5 {[%emt 0:00:21]} Bxf3 {[%emt 0:01:42]} 37. Qe8 {[%emt 0:00:09]} Qd4+ {[%emt 0:01:25]} 38. Kf1 {[%emt 0:00:08]} Qd7 {[%emt 0:00:27]} 39. Qb8 {[%emt 0:00:23]} Rd1 {[%emt 0:00:46]} 0-1

[Event "Swedish Championship U20 2022"]
[Site "Uppsala"]
[Date "2022.07.07"]
[Round "6.3"]
[White "Olsson, William"]
[Black "Rasti, Arvin"]
[Result "0-1"]
[ECO "A13"]
[WhiteElo "2284"]
[BlackElo "2136"]
[Annotator "RC"]
[PlyCount "74"]
[EventDate "2022.07.01"]
[EventType "tourn"]
[EventCountry "SWE"]
[SourceTitle "playchess.com"]
[Source "ChessBase"]
[SourceQuality "1"]
[TimeControl "40/5400+30:1800+30"]

1. c4 {[%emt 0:00:02]} e6 {[%emt 0:00:24]} 2. Nf3 {[%emt 0:00:07]} Nf6 {[%emt 0:00:13]} 3. g3 {[%emt 0:00:04]} a6 {[%emt 0:00:09]} 4. Bg2 {[%emt 0:01:20]} b5 {[%emt 0:00:08]} 5. b3 {[%emt 0:08:38]} Bb7 {[%emt 0:00:50]} 6. O-O {[%emt 0:00:20]} c5 {[%emt 0:00:24]} 7. Bb2 {[%emt 0:02:26]} Qb6 {[%emt 0:03:24]} 8. d3 {[%emt 0:05:00]} Be7 {[%emt 0:03:34]} 9. Nbd2 {[%emt 0:04:13]} O-O {[%emt 0:02:10]} 10. e4 {[%emt 0:00:55]} d6 {[%emt 0:01:29]} 11. Qe2 {[%emt 0:03:32]} Nc6 {[%emt 0:05:56]} 12. Ne1 {[%emt 0:04:25]} Rae8 {[%emt 0:11:55]} 13. f4 {[%emt 0:03:09]} Nd7 {[%emt 0:02:08]} 14. Nef3 {[%emt 0:03:34]} Qc7 {[%emt 0:09:11]} 15. Rfe1 {[%emt 0:07:31]} Bd8 {[%emt 0:08:26]} 16. Kh1 {[%emt 0:02:27]} b4 {[%emt 0:03:25]} 17. a3 {[%emt 0:02:01]} bxa3 {[%emt 0:01:12]} 18. Rxa3 {[%emt 0:00:15]} Nb4 {[%emt 0:02:18]} 19. Rf1 {[%emt 0:04:03]} Qb8 {[%emt 0:04:08]} 20. Bc3 {[%emt 0:03:42]} Nc6 {[%emt 0:01:15]} 21. d4 {[%emt 0:02:45]} cxd4 {[%emt 0:02:20]} 22. Nxd4 {[%emt 0:00:09]} Nxd4 {[%emt 0:00:10]} 23. Bxd4 {[%emt 0:00:06]} e5 {[%emt 0:00:39]} 24. fxe5 {[%emt 0:02:35]} Nxe5 {[%emt 0:00:26]} 25. Qf2 {[%emt 0:05:04]} f5 {[%emt 0:04:52]} 26. exf5 {[%emt 0:04:40]} Nd3 {[%emt 0:02:51]} 27. Qg1 {[%emt 0:02:38]} Re2 {[%emt 0:01:03]} 28. Nf3 {[%emt 0:01:39]} Rxf5 {[%emt 0:01:02]} 29. Raa1 {[%emt 0:03:42]} Qa8 {[%emt 0:01:34]} 30. Rae1 {[%emt 0:03:03]} Nxe1 {[%emt 0:04:59]} 31. Rxe1 {[%emt 0:00:12]} Rxe1 {[%emt 0:00:39]} 32. Nxe1 {[%emt 0:00:30]} Bxg2+ {[%emt 0:00:15]} 33. Nxg2 {[%emt 0:00:13]} Qf3 {[%emt 0:01:37]} 34. b4 {[%emt 0:00:43]} Qd3 {[%emt 0:00:26]} 35. Nf4 {[%emt 0:00:07]} Qxc4 {[%emt 0:00:50]} 36. Qe1 {[%emt 0:00:15]} Rxf4 {[%emt 0:01:59]} 37. gxf4 {[%emt 0:00:07]} Qd5+ {[%emt 0:00:03]} 0-1

[Event "Swedish Championship U20 2022"]
[Site "Uppsala"]
[Date "2022.07.07"]
[Round "6.4"]
[White "Torngren, Gustav"]
[Black "Wernberg, Hugo"]
[Result "1/2-1/2"]
[ECO "A39"]
[WhiteElo "2273"]
[BlackElo "2316"]
[Annotator "RC"]
[PlyCount "95"]
[EventDate "2022.07.01"]
[EventType "tourn"]
[EventCountry "SWE"]
[SourceTitle "playchess.com"]
[Source "ChessBase"]
[SourceQuality "1"]
[TimeControl "40/5400+30:1800+30"]

1. c4 {[%emt 0:08:14]} c5 {[%emt 0:00:17]} 2. Nf3 {[%emt 0:00:47]} Nc6 {[%emt 0:00:35]} 3. d4 {[%emt 0:00:46]} cxd4 {[%emt 0:00:44]} 4. Nxd4 {[%emt 0:00:07]} Nf6 {[%emt 0:03:47]} 5. g3 {[%emt 0:00:17]} g6 {[%emt 0:02:25]} 6. Bg2 {[%emt 0:00:09]} Bg7 {[%emt 0:00:56]} 7. O-O {[%emt 0:00:03]} O-O {[%emt 0:01:04]} 8. Nc3 {[%emt 0:00:11]} Nxd4 {[%emt 0:01:24]} 9. Qxd4 {[%emt 0:00:04]} d6 {[%emt 0:00:54]} 10. Bg5 {[%emt 0:00:15]} Be6 {[%emt 0:06:38]} 11. Qd3 {[%emt 0:00:32]} Qa5 {[%emt 0:12:57]} 12. Bd2 {[%emt 0:00:24]} Qc7 {[%emt 0:01:12]} 13. b3 {[%emt 0:01:58]} a6 {[%emt 0:03:30]} 14. Rac1 {[%emt 0:08:17]} Rfc8 {[%emt 0:04:20]} 15. Be3 {[%emt 0:02:35]} Nd7 {[%emt 0:13:04]} 16. Qd2 {[%emt 0:00:13]} Nc5 {[%emt 0:04:12]} 17. Rfd1 {[%emt 0:09:54]} Rab8 {[%emt 0:03:13]} 18. Bh6 {[%emt 0:15:34]} Bh8 {[%emt 0:02:32]} 19. h4 {[%emt 0:05:36]} Qd8 {[%emt 0:09:52]} 20. Ne4 {[%emt 0:09:38]} Nxe4 {[%emt 0:02:55]} 21. Bxe4 {[%emt 0:00:02]} b6 {[%emt 0:05:54]} 22. h5 {[%emt 0:01:52]} Qd7 {[%emt 0:01:43]} 23. Qd3 {[%emt 0:03:30]} Bf5 {[%emt 0:01:56]} 24. Bxf5 {[%emt 0:06:16]} Qxf5 {[%emt 0:00:17]} 25. Qxf5 {[%emt 0:00:33]} gxf5 {[%emt 0:00:09]} 26. Rd5 {[%emt 0:00:45]} Be5 {[%emt 0:03:50]} 27. f4 {[%emt 0:14:13]} Bg7 {[%emt 0:02:39]} 28. Bxg7 {[%emt 0:00:13]} Kxg7 {[%emt 0:00:07]} 29. Rxf5 {[%emt 0:00:04]} e6 {[%emt 0:00:10]} 30. Rg5+ {[%emt 0:00:09]} Kh6 {[%emt 0:02:10]} 31. Rd1 {[%emt 0:06:10]} Rc6 {[%emt 0:00:48]} 32. Kf2 {[%emt 0:02:27]} Rd8 {[%emt 0:02:48]} 33. Rd2 {[%emt 0:00:33]} f6 {[%emt 0:03:14]} 34. Rg4 {[%emt 0:00:08]} Rc5 {[%emt 0:01:00]} 35. Rh4 {[%emt 0:01:24]} Rxh5 {[%emt 0:00:18]} 36. Rxh5+ {[%emt 0:00:07]} Kxh5 {[%emt 0:00:06]} 37. Kf3 {[%emt 0:00:06]} f5 {[%emt 0:00:59]} 38. e3 {[%emt 0:04:45]} Kg6 {[%emt 0:00:41]} 39. e4 {[%emt 0:00:26]} fxe4+ {[%emt 0:01:03]} 40. Kxe4 {[%emt 0:00:01]} h5 {[%emt 0:03:21]} 41. Rh2 {[%emt 0:06:08]} Rc8 {[%emt 0:02:02]} 42. f5+ {[%emt 0:11:40]} exf5+ {[%emt 0:00:49]} 43. Kd5 {[%emt 0:00:02]} Kg5 {[%emt 0:05:41]} 44. Rh4 {[%emt 0:09:23]} Re8 {[%emt 0:10:16]} 45. Kxd6 {[%emt 0:01:02]} Re3 {[%emt 0:01:56]} 46. Rh3 {[%emt 0:00:02]} Kg4 {[%emt 0:02:15]} 47. Rh4+ {[%emt 0:00:10]} Kg5 {[%emt 0:01:24]} 48. Rh3 {[%emt 0:00:03]} 1/2-1/2

[Event "Swedish Championship U20 2022"]
[Site "Uppsala"]
[Date "2022.07.07"]
[Round "6.5"]
[White "Falkevall, Axel"]
[Black "Ostlund, Joar"]
[Result "1/2-1/2"]
[ECO "C70"]
[WhiteElo "2275"]
[BlackElo "2222"]
[Annotator "RC"]
[PlyCount "64"]
[EventDate "2022.07.01"]
[EventType "tourn"]
[EventCountry "SWE"]
[SourceTitle "playchess.com"]
[Source "ChessBase"]
[SourceQuality "1"]
[TimeControl "40/5400+30:1800+30"]

1. e4 {[%emt 0:00:10]} e5 {[%emt 0:00:07]} 2. Nf3 {[%emt 0:00:05]} Nc6 {[%emt 0:00:09]} 3. Bb5 {[%emt 0:00:13]} a6 {[%emt 0:00:17]} 4. Ba4 {[%emt 0:00:08]} g6 {[%emt 0:00:35]} 5. d4 {[%emt 0:01:08]} b5 {[%emt 0:00:16]} 6. Bb3 {[%emt 0:00:06]} exd4 {[%emt 0:00:16]} 7. Nxd4 {[%emt 0:01:13]} Na5 {[%emt 0:00:07]} 8. a4 {[%emt 0:01:29]} b4 {[%emt 0:01:44]} 9. Ba2 {[%emt 0:06:19]} Bg7 {[%emt 0:00:10]} 10. O-O {[%emt 0:04:32]} Ne7 {[%emt 0:00:04]} 11. c3 {[%emt 0:05:53]} c5 {[%emt 0:00:11]} 12. Nf3 {[%emt 0:05:28]} O-O {[%emt 0:06:29]} 13. Bf4 {[%emt 0:09:49]} Bb7 {[%emt 0:15:28]} 14. Bd6 {[%emt 0:10:26]} Rc8 {[%emt 0:37:02]} 15. Nbd2 {[%emt 0:08:37]} bxc3 {[%emt 0:04:34]} 16. bxc3 {[%emt 0:01:53]} Re8 {[%emt 0:01:55]} 17. Rb1 {[%emt 0:08:10]} Rc6 {[%emt 0:03:32]} 18. Nc4 {[%emt 0:17:20]} Nxc4 {[%emt 0:10:57]} 19. Bxc4 {[%emt 0:00:58]} Nc8 {[%emt 0:03:40]} 20. e5 {[%emt 0:09:43]} Nxd6 {[%emt 0:05:51]} 21. exd6 {[%emt 0:00:11]} Ba8 {[%emt 0:00:25]} 22. Qb3 {[%emt 0:04:40]} Rf8 {[%emt 0:02:12]} 23. Rfd1 {[%emt 0:01:51]} Qf6 {[%emt 0:00:35]} 24. Bd5 {[%emt 0:00:51]} Rxd6 {[%emt 0:02:08]} 25. Bxf7+ {[%emt 0:01:13]} Kh8 {[%emt 0:01:37]} 26. Rxd6 {[%emt 0:00:15]} Qxd6 {[%emt 0:00:08]} 27. Rd1 {[%emt 0:00:30]} Qf6 {[%emt 0:02:48]} 28. Bd5 {[%emt 0:00:35]} Qxc3 {[%emt 0:00:40]} 29. Qxc3 {[%emt 0:00:14]} Bxc3 {[%emt 0:00:07]} 30. Bxa8 {[%emt 0:00:05]} Rxa8 {[%emt 0:00:06]} 31. Rxd7 {[%emt 0:00:12]} Rc8 {[%emt 0:00:32]} 32. Kf1 {[%emt 0:00:39]} c4 {[%emt 0:01:03]} 1/2-1/2